[Event "*** Titled Tuesday Blitz"]
[Site "Chess.com"]
[Date "2020.05.26"]
[Round "9"]
[White "kot60"]
[Black "tamarozi99"]
[Result "1-0"]
[WhiteElo "2385"]
[BlackElo "2002"]
[TimeControl "180+1"]
[EndTime "11:52:15 PDT"]
[Termination "kot60 won by resignation"]

1. e4 {[%clk 0:03:00.9]} 1... c5 {[%clk 0:02:57]} 2. Nc3 {[%clk 0:03:00.7]} 2...
Nc6 {[%clk 0:02:55.7]} 3. Bc4 {[%clk 0:03:00.5]} 3... g6 {[%clk 0:02:55.4]} 4.
d3 {[%clk 0:03:00.6]} 4... Bg7 {[%clk 0:02:55.5]} 5. f4 {[%clk 0:03:00.6]} 5...
d6 {[%clk 0:02:51.7]} 6. f5 {[%clk 0:03:00.9]} 6... gxf5 {[%clk 0:02:50.3]} 7.
Nf3 {[%clk 0:03:00.6]} 7... fxe4 {[%clk 0:02:49.2]} 8. dxe4 {[%clk 0:03:01.5]}
8... Nf6 {[%clk 0:02:48.8]} 9. O-O {[%clk 0:03:00.6]} 9... Bg4 {[%clk
0:02:48.1]} 10. Qe1 {[%clk 0:03:00.7]} 10... Bxf3 {[%clk 0:02:45]} 11. Rxf3
{[%clk 0:03:00.7]} 11... Ne5 {[%clk 0:02:45]} 12. Rg3 {[%clk 0:03:00.6]} 12...
Rg8 {[%clk 0:02:21.1]} 13. Bb5+ {[%clk 0:02:58]} 13... Kf8 {[%clk 0:02:16.2]}
14. Bg5 {[%clk 0:02:50.4]} 14... a6 {[%clk 0:02:13.9]} 15. Be2 {[%clk
0:02:48.3]} 15... h6 {[%clk 0:01:56.3]} 16. Bxf6 {[%clk 0:02:34.2]} 16... Bxf6
{[%clk 0:01:56]} 17. Rxg8+ {[%clk 0:02:33]} 17... Kxg8 {[%clk 0:01:56.1]} 18.
Nd5 {[%clk 0:02:28.1]} 18... Bg7 {[%clk 0:01:55.8]} 19. Qg3 {[%clk 0:02:15]}
19... Ng6 {[%clk 0:01:44.2]} 20. c3 {[%clk 0:02:11.2]} 20... e6 {[%clk
0:01:36.1]} 21. Ne3 {[%clk 0:02:07.8]} 21... Qg5 {[%clk 0:01:35.7]} 22. Qxg5
{[%clk 0:02:01.3]} 22... hxg5 {[%clk 0:01:36.6]} 23. Rd1 {[%clk 0:02:00.4]}
23... Rd8 {[%clk 0:01:34.6]} 24. g3 {[%clk 0:01:44.2]} 24... b5 {[%clk
0:01:30.4]} 25. a4 {[%clk 0:01:41.2]} 25... b4 {[%clk 0:01:26.2]} 26. Bxa6
{[%clk 0:01:02.1]} 26... bxc3 {[%clk 0:01:25.4]} 27. bxc3 {[%clk 0:01:01.5]}
27... Bxc3 {[%clk 0:01:24.4]} 28. Kg2 {[%clk 0:00:58.7]} 28... Bd4 {[%clk
0:01:19.5]} 29. Nc2 {[%clk 0:00:54.9]} 29... Bc3 {[%clk 0:01:19.3]} 30. Rd3
{[%clk 0:00:52.8]} 30... Ba5 {[%clk 0:01:14.4]} 31. Rb3 {[%clk 0:00:49.8]} 31...
Ne5 {[%clk 0:01:10.1]} 32. Rb5 {[%clk 0:00:48.1]} 32... Nc4 {[%clk 0:01:02.9]}
33. Rb7 {[%clk 0:00:35.9]} 33... d5 {[%clk 0:00:57.4]} 34. exd5 {[%clk
0:00:22.6]} 34... exd5 {[%clk 0:00:58.3]} 35. Bxc4 {[%clk 0:00:19.2]} 35... dxc4
{[%clk 0:00:57.9]} 36. Rb5 {[%clk 0:00:17.1]} 36... Bc3 {[%clk 0:00:43.8]} 37.
Ne3 {[%clk 0:00:14.7]} 37... Bb4 {[%clk 0:00:27.1]} 38. Nxc4 {[%clk 0:00:13.4]}
38... Ra8 {[%clk 0:00:24.5]} 39. Nb6 {[%clk 0:00:08.7]} 39... Kf8 {[%clk
0:00:23.7]} 40. Nxa8 {[%clk 0:00:08.3]} 40... Ke7 {[%clk 0:00:23.8]} 41. a5
{[%clk 0:00:08.6]} 41... Kd7 {[%clk 0:00:22.6]} 42. a6 {[%clk 0:00:08.1]} 42...
Kc6 {[%clk 0:00:22.6]} 43. Rb6+ {[%clk 0:00:08.1]} 43... Kd7 {[%clk 0:00:21.6]}
44. a7 {[%clk 0:00:08]} 44... c4 {[%clk 0:00:21.5]} 45. Rxb4 {[%clk 0:00:07.7]}
45... c3 {[%clk 0:00:21.3]} 46. Nb6+ {[%clk 0:00:07.4]} 46... Ke6 {[%clk
0:00:20.4]} 47. a8=Q {[%clk 0:00:08.3]} 1-0

[Event "*** Titled Tuesday Blitz"]
[Site "Chess.com"]
[Date "2020.05.26"]
[Round "9"]
[White "GelmanAlexander"]
[Black "chess94cu"]
[Result "1/2-1/2"]
[WhiteElo "2551"]
[BlackElo "2457"]
[TimeControl "180+1"]
[EndTime "11:52:16 PDT"]
[Termination "Game drawn - insufficient material"]

1. c4 {[%clk 0:03:00.9]} 1... Nf6 {[%clk 0:02:59.2]} 2. Nf3 {[%clk 0:02:58]}
2... e6 {[%clk 0:02:59]} 3. d3 {[%clk 0:02:58]} 3... d5 {[%clk 0:02:55.2]} 4.
Nbd2 {[%clk 0:02:57.5]} 4... c6 {[%clk 0:02:54.3]} 5. b3 {[%clk 0:02:55.1]} 5...
Nbd7 {[%clk 0:02:54.1]} 6. Bb2 {[%clk 0:02:55.3]} 6... Bd6 {[%clk 0:02:48.7]} 7.
Rg1 {[%clk 0:02:49.5]} 7... Qe7 {[%clk 0:02:45.3]} 8. g4 {[%clk 0:02:49.4]} 8...
h6 {[%clk 0:02:45.4]} 9. h4 {[%clk 0:02:49.1]} 9... e5 {[%clk 0:02:31.8]} 10. g5
{[%clk 0:02:37.4]} 10... hxg5 {[%clk 0:02:32.7]} 11. hxg5 {[%clk 0:02:38]} 11...
Nh5 {[%clk 0:02:32]} 12. e3 {[%clk 0:02:36.4]} 12... Ba3 {[%clk 0:02:19.7]} 13.
Bxa3 {[%clk 0:02:30.7]} 13... Qxa3 {[%clk 0:02:20.6]} 14. cxd5 {[%clk
0:02:23.9]} 14... cxd5 {[%clk 0:02:19.9]} 15. g6 {[%clk 0:02:01.6]} 15... fxg6
{[%clk 0:02:13]} 16. Rc1 {[%clk 0:01:44.9]} 16... Qe7 {[%clk 0:01:59.4]} 17. Rc7
{[%clk 0:01:38.8]} 17... Qd6 {[%clk 0:01:57.3]} 18. Qc2 {[%clk 0:01:37.9]} 18...
O-O {[%clk 0:01:57]} 19. Bh3 {[%clk 0:01:24.2]} 19... Nb6 {[%clk 0:01:44.6]} 20.
Bg4 {[%clk 0:00:46.7]} 20... Bxg4 {[%clk 0:01:37.3]} 21. Rxg4 {[%clk 0:00:47.6]}
21... Rac8 {[%clk 0:01:36.7]} 22. Rxc8 {[%clk 0:00:48.1]} 22... Rxc8 {[%clk
0:01:35.8]} 23. Qb2 {[%clk 0:00:49]} 23... Nd7 {[%clk 0:01:31]} 24. Ke2 {[%clk
0:00:48.2]} 24... b5 {[%clk 0:01:19.8]} 25. b4 {[%clk 0:00:47]} 25... Qe6 {[%clk
0:01:09.7]} 26. Rg5 {[%clk 0:00:47.1]} 26... Re8 {[%clk 0:01:00.8]} 27. Qc1
{[%clk 0:00:39.2]} 27... e4 {[%clk 0:00:56.7]} 28. dxe4 {[%clk 0:00:35.9]} 28...
dxe4 {[%clk 0:00:57.1]} 29. Nd4 {[%clk 0:00:36.4]} 29... Qf6 {[%clk 0:00:57.1]}
30. Qg1 {[%clk 0:00:32.4]} 30... Ne5 {[%clk 0:00:51.6]} 31. Nxe4 {[%clk
0:00:32.6]} 31... Qf7 {[%clk 0:00:51.4]} 32. Nd6 {[%clk 0:00:31.2]} 32... Qxa2+
{[%clk 0:00:50.5]} 33. Kf1 {[%clk 0:00:31.2]} 33... Qb1+ {[%clk 0:00:36.2]} 34.
Kg2 {[%clk 0:00:31]} 34... Qxg1+ {[%clk 0:00:28.2]} 35. Kxg1 {[%clk 0:00:31.9]}
35... Re7 {[%clk 0:00:24.6]} 36. N6xb5 {[%clk 0:00:25.6]} 36... a6 {[%clk
0:00:22.3]} 37. Nd6 {[%clk 0:00:25]} 37... Nf6 {[%clk 0:00:22.9]} 38. f4 {[%clk
0:00:22.3]} 38... Nd3 {[%clk 0:00:22.5]} 39. Rxg6 {[%clk 0:00:20]} 39... Rxe3
{[%clk 0:00:21.2]} 40. Rxg7+ {[%clk 0:00:17.6]} 40... Kxg7 {[%clk 0:00:20.4]}
41. N6f5+ {[%clk 0:00:18.2]} 41... Kg6 {[%clk 0:00:20.3]} 42. Nxe3 {[%clk
0:00:19.1]} 42... Nxb4 {[%clk 0:00:18.4]} 43. Kf2 {[%clk 0:00:19.6]} 43... Nbd5
{[%clk 0:00:17.8]} 44. Nxd5 {[%clk 0:00:19.5]} 44... Nxd5 {[%clk 0:00:18.7]} 45.
Kf3 {[%clk 0:00:20.1]} 45... Nxf4 {[%clk 0:00:18]} 46. Kxf4 {[%clk 0:00:20.3]}
46... a5 {[%clk 0:00:18.8]} 47. Ke4 {[%clk 0:00:20.7]} 47... a4 {[%clk
0:00:19.4]} 48. Kd3 {[%clk 0:00:21.3]} 48... a3 {[%clk 0:00:20.1]} 49. Kc3
{[%clk 0:00:21.8]} 49... a2 {[%clk 0:00:20.7]} 50. Kb2 {[%clk 0:00:22.4]} 50...
a1=Q+ {[%clk 0:00:20.9]} 51. Kxa1 {[%clk 0:00:23]} 1/2-1/2

[Event "*** Titled Tuesday Blitz"]
[Site "Chess.com"]
[Date "2020.05.26"]
[Round "9"]
[White "EvgenyRomanov"]
[Black "SCIM"]
[Result "1-0"]
[WhiteElo "2657"]
[BlackElo "2520"]
[TimeControl "180+1"]
[EndTime "11:52:18 PDT"]
[Termination "EvgenyRomanov won by resignation"]

1. c4 {[%clk 0:03:00.9]} 1... g6 {[%clk 0:02:58]} 2. d4 {[%clk 0:02:59.6]} 2...
Nf6 {[%clk 0:02:57.4]} 3. Nc3 {[%clk 0:02:58.4]} 3... d5 {[%clk 0:02:57.6]} 4.
e3 {[%clk 0:02:57.7]} 4... Bg7 {[%clk 0:02:57.2]} 5. cxd5 {[%clk 0:02:57.4]}
5... Nxd5 {[%clk 0:02:57]} 6. Nxd5 {[%clk 0:02:58.3]} 6... Qxd5 {[%clk
0:02:55.9]} 7. Ne2 {[%clk 0:02:59.1]} 7... O-O {[%clk 0:02:50.3]} 8. Nc3 {[%clk
0:02:58.9]} 8... Qd8 {[%clk 0:02:47.5]} 9. Be2 {[%clk 0:02:52]} 9... c5 {[%clk
0:02:44.3]} 10. d5 {[%clk 0:02:49.4]} 10... a6 {[%clk 0:02:43.5]} 11. a4 {[%clk
0:02:46.1]} 11... e6 {[%clk 0:02:34.7]} 12. Bf3 {[%clk 0:02:42.9]} 12... exd5
{[%clk 0:02:30]} 13. Nxd5 {[%clk 0:02:41.2]} 13... Nc6 {[%clk 0:02:26.8]} 14.
Bd2 {[%clk 0:02:29.6]} 14... Ne5 {[%clk 0:02:03.8]} 15. Bc3 {[%clk 0:02:28.4]}
15... Be6 {[%clk 0:02:03.2]} 16. Bxe5 {[%clk 0:02:07.7]} 16... Bxe5 {[%clk
0:02:04.1]} 17. O-O {[%clk 0:02:06.5]} 17... Qd6 {[%clk 0:01:29.4]} 18. Nf6+
{[%clk 0:01:21.6]} 18... Kg7 {[%clk 0:01:29.1]} 19. Qxd6 {[%clk 0:01:21.4]}
19... Bxd6 {[%clk 0:01:30]} 20. Nd5 {[%clk 0:01:18]} 20... Be5 {[%clk
0:01:23.4]} 21. Rac1 {[%clk 0:01:15.9]} 21... Rac8 {[%clk 0:01:14.4]} 22. b3
{[%clk 0:01:14.2]} 22... Rfd8 {[%clk 0:01:12.1]} 23. Rfd1 {[%clk 0:01:14]} 23...
Rd6 {[%clk 0:01:08.7]} 24. a5 {[%clk 0:01:09.3]} 24... Rcd8 {[%clk 0:01:06.9]}
25. Rxc5 {[%clk 0:01:08.5]} 25... g5 {[%clk 0:00:56.4]} 26. g4 {[%clk
0:01:04.9]} 26... h5 {[%clk 0:00:55.3]} 27. h3 {[%clk 0:01:02.7]} 27... hxg4
{[%clk 0:00:54.9]} 28. hxg4 {[%clk 0:01:03.6]} 28... Rh8 {[%clk 0:00:50.3]} 29.
Kf1 {[%clk 0:01:03.2]} 29... Rh3 {[%clk 0:00:48]} 30. Ke2 {[%clk 0:00:57.7]}
30... Bd7 {[%clk 0:00:38.6]} 31. Nc3 {[%clk 0:00:33.9]} 31... Rxd1 {[%clk
0:00:34.1]} 32. Nxd1 {[%clk 0:00:33.8]} 32... Bb5+ {[%clk 0:00:18.7]} 33. Kd2
{[%clk 0:00:29.9]} 33... Bd6 {[%clk 0:00:15.8]} 34. Rxg5+ {[%clk 0:00:29.4]}
34... Kf8 {[%clk 0:00:14.9]} 35. Rxb5 {[%clk 0:00:23.5]} 35... axb5 {[%clk
0:00:11.1]} 36. Bxb7 {[%clk 0:00:24.4]} 36... Bb8 {[%clk 0:00:11.4]} 37. Nc3
{[%clk 0:00:21.4]} 37... b4 {[%clk 0:00:11]} 38. Nb5 {[%clk 0:00:20]} 38... Rh2
{[%clk 0:00:11.6]} 39. Ke2 {[%clk 0:00:17.5]} 39... Rh6 {[%clk 0:00:10.9]} 40.
a6 {[%clk 0:00:16.8]} 40... Rb6 {[%clk 0:00:10.7]} 41. Nd4 {[%clk 0:00:16.3]}
41... Ba7 {[%clk 0:00:10.7]} 42. Nc6 {[%clk 0:00:15.7]} 42... Rxc6 {[%clk
0:00:08.3]} 43. Bxc6 {[%clk 0:00:16.6]} 43... Ke7 {[%clk 0:00:09.1]} 44. Kd3
{[%clk 0:00:16.3]} 44... f6 {[%clk 0:00:09.7]} 45. Kc4 {[%clk 0:00:15.9]} 45...
Kd6 {[%clk 0:00:10.6]} 46. Be8 {[%clk 0:00:15.5]} 1-0

[Event "*** Titled Tuesday Blitz"]
[Site "Chess.com"]
[Date "2020.05.26"]
[Round "9"]
[White "floplover"]
[Black "MFBerna"]
[Result "0-1"]
[WhiteElo "2247"]
[BlackElo "2393"]
[TimeControl "180+1"]
[EndTime "11:52:21 PDT"]
[Termination "MFBerna won on time"]

1. d4 {[%clk 0:03:00.9]} 1... d5 {[%clk 0:02:59.6]} 2. c4 {[%clk 0:03:00.4]}
2... e6 {[%clk 0:02:59.8]} 3. Nc3 {[%clk 0:03:00]} 3... c6 {[%clk 0:03:00.3]} 4.
e4 {[%clk 0:02:59.8]} 4... dxe4 {[%clk 0:03:00.2]} 5. Nxe4 {[%clk 0:03:00.7]}
5... Nf6 {[%clk 0:02:59.2]} 6. Nxf6+ {[%clk 0:02:58.8]} 6... Qxf6 {[%clk
0:03:00.1]} 7. Nf3 {[%clk 0:02:59.2]} 7... Bb4+ {[%clk 0:02:57.2]} 8. Bd2 {[%clk
0:02:59.3]} 8... Bxd2+ {[%clk 0:02:57]} 9. Qxd2 {[%clk 0:03:00.2]} 9... Nd7
{[%clk 0:02:55.6]} 10. Bd3 {[%clk 0:02:57.1]} 10... O-O {[%clk 0:02:54.6]} 11.
O-O {[%clk 0:02:56.6]} 11... e5 {[%clk 0:02:53.2]} 12. Ng5 {[%clk 0:02:25]}
12... Qh6 {[%clk 0:02:44.6]} 13. Bxh7+ {[%clk 0:01:29.3]} 13... Kh8 {[%clk
0:02:44.1]} 14. f4 {[%clk 0:00:59]} 14... exf4 {[%clk 0:02:28.2]} 15. Qxf4
{[%clk 0:00:29.8]} 15... f6 {[%clk 0:02:12.6]} 16. Ne6 {[%clk 0:00:16.9]} 16...
Qxf4 {[%clk 0:02:08]} 17. Rxf4 {[%clk 0:00:17.8]} 17... Kxh7 {[%clk 0:02:02.9]}
18. Nxf8+ {[%clk 0:00:18]} 18... Nxf8 {[%clk 0:02:03.4]} 19. d5 {[%clk
0:00:15.5]} 19... cxd5 {[%clk 0:02:03.1]} 20. cxd5 {[%clk 0:00:16.4]} 20... Bd7
{[%clk 0:01:51.1]} 21. Rc1 {[%clk 0:00:16.5]} 21... Re8 {[%clk 0:01:49.1]} 22.
Rc7 {[%clk 0:00:14.9]} 22... b6 {[%clk 0:01:40.7]} 23. Rxa7 {[%clk 0:00:13.4]}
23... Re2 {[%clk 0:01:36.2]} 24. Rf2 {[%clk 0:00:11.9]} 24... Re1+ {[%clk
0:01:35.6]} 25. Rf1 {[%clk 0:00:12.2]} 25... Re2 {[%clk 0:01:36]} 26. b4 {[%clk
0:00:11.6]} 26... b5 {[%clk 0:01:27.8]} 27. h3 {[%clk 0:00:09]} 27... Rd2 {[%clk
0:01:19.3]} 28. Re1 {[%clk 0:00:06.3]} 28... Kh6 {[%clk 0:00:55.1]} 29. Re7
{[%clk 0:00:06.4]} 29... Rxd5 {[%clk 0:00:53.2]} 30. Kh2 {[%clk 0:00:06.2]}
30... Rd2 {[%clk 0:00:38.1]} 31. a3 {[%clk 0:00:05.8]} 31... g6 {[%clk
0:00:29.3]} 32. Kg1 {[%clk 0:00:04.9]} 32... Bc6 {[%clk 0:00:28.4]} 33. g4
{[%clk 0:00:02.6]} 33... Kg5 {[%clk 0:00:21.3]} 34. Kf1 {[%clk 0:00:03.5]} 34...
Rh2 {[%clk 0:00:11.9]} 35. Rac7 {[%clk 0:00:03.3]} 35... Bd5 {[%clk 0:00:11.7]}
36. Rc3 {[%clk 0:00:02.5]} 36... Bc4+ {[%clk 0:00:10.9]} 37. Ke1 {[%clk
0:00:02.2]} 37... Rh1+ {[%clk 0:00:09.1]} 38. Kd2 {[%clk 0:00:02.3]} 38... Rh2+
{[%clk 0:00:08.9]} 39. Kc1 {[%clk 0:00:02.5]} 39... Rh1+ {[%clk 0:00:08.9]} 40.
Kd2 {[%clk 0:00:02.9]} 40... Ra1 {[%clk 0:00:07.3]} 0-1

[Event "*** Titled Tuesday Blitz"]
[Site "Chess.com"]
[Date "2020.05.26"]
[Round "9"]
[White "ShahMatKanal"]
[Black "StockholmMissile"]
[Result "1-0"]
[WhiteElo "2472"]
[BlackElo "2417"]
[TimeControl "180+1"]
[EndTime "11:52:22 PDT"]
[Termination "ShahMatKanal won by resignation"]

1. e4 {[%clk 0:03:00.9]} 1... e5 {[%clk 0:02:59.5]} 2. f4 {[%clk 0:03:00.5]}
2... d5 {[%clk 0:02:58]} 3. exd5 {[%clk 0:02:59.6]} 3... exf4 {[%clk 0:02:58.1]}
4. Nf3 {[%clk 0:02:59.9]} 4... Nf6 {[%clk 0:02:58.4]} 5. d4 {[%clk 0:02:58.3]}
5... Nxd5 {[%clk 0:02:58.1]} 6. Bc4 {[%clk 0:02:54.8]} 6... Be7 {[%clk
0:02:47.3]} 7. O-O {[%clk 0:02:53.7]} 7... O-O {[%clk 0:02:47.2]} 8. Nc3 {[%clk
0:02:44.5]} 8... Nxc3 {[%clk 0:02:44.3]} 9. bxc3 {[%clk 0:02:44.3]} 9... Bd6
{[%clk 0:02:44.6]} 10. Bd3 {[%clk 0:02:25.2]} 10... Nd7 {[%clk 0:02:42.3]} 11.
Qe1 {[%clk 0:02:18.5]} 11... Re8 {[%clk 0:02:37.1]} 12. Qf2 {[%clk 0:02:11.7]}
12... Nf6 {[%clk 0:02:34.7]} 13. Ne5 {[%clk 0:02:01.5]} 13... Bxe5 {[%clk
0:02:13.7]} 14. dxe5 {[%clk 0:02:00.4]} 14... Ng4 {[%clk 0:02:13.6]} 15. Qxf4
{[%clk 0:01:51.2]} 15... Nxe5 {[%clk 0:02:12.8]} 16. Ba3 {[%clk 0:01:35.9]}
16... Nxd3 {[%clk 0:02:05.2]} 17. Qxf7+ {[%clk 0:01:34.5]} 17... Kh8 {[%clk
0:02:05.6]} 18. Bf8 {[%clk 0:01:17.1]} 18... Qg5 {[%clk 0:01:31.8]} 19. Bxg7+
{[%clk 0:01:15.8]} 19... Qxg7 {[%clk 0:01:19.4]} 20. Qxe8+ {[%clk 0:01:16.7]}
20... Qg8 {[%clk 0:01:19.4]} 21. Qf8 {[%clk 0:01:17.6]} 21... Qxf8 {[%clk
0:01:11.3]} 22. Rxf8+ {[%clk 0:01:17]} 22... Kg7 {[%clk 0:01:11.4]} 23. Re8
{[%clk 0:01:06.9]} 23... Nc5 {[%clk 0:00:52.9]} 24. Rf1 {[%clk 0:00:38.3]} 24...
Nd7 {[%clk 0:00:41.6]} 25. Re7+ {[%clk 0:00:34.9]} 25... Kg6 {[%clk 0:00:40.4]}
26. Rff7 {[%clk 0:00:35.8]} 26... Nb6 {[%clk 0:00:24]} 27. Rg7+ {[%clk
0:00:28.6]} 27... Kf6 {[%clk 0:00:22.8]} 28. Rgf7+ {[%clk 0:00:28.6]} 28... Kg6
{[%clk 0:00:22.6]} 29. Rxh7 {[%clk 0:00:28.5]} 29... Bf5 {[%clk 0:00:22]} 30.
Rhg7+ {[%clk 0:00:22.2]} 30... Kf6 {[%clk 0:00:22]} 31. Rgf7+ {[%clk 0:00:22.4]}
31... Kg6 {[%clk 0:00:22.3]} 32. Rxc7 {[%clk 0:00:21.3]} 32... Rd8 {[%clk
0:00:19.9]} 33. h4 {[%clk 0:00:19.6]} 33... Rd1+ {[%clk 0:00:15.3]} 34. Kh2
{[%clk 0:00:19.8]} 34... Rd2 {[%clk 0:00:13.9]} 35. h5+ {[%clk 0:00:12.2]} 35...
Kg5 {[%clk 0:00:14.2]} 36. h6 {[%clk 0:00:10.4]} 36... Be4 {[%clk 0:00:14.5]}
37. h7 {[%clk 0:00:08.1]} 37... Rxg2+ {[%clk 0:00:07.7]} 38. Kh3 {[%clk
0:00:08.5]} 38... Rg1 {[%clk 0:00:04.5]} 39. Rg7+ {[%clk 0:00:08.7]} 39... Kf4
{[%clk 0:00:04.5]} 40. Rxg1 {[%clk 0:00:07.9]} 40... Bxh7 {[%clk 0:00:04.2]} 41.
Rxh7 {[%clk 0:00:06.2]} 1-0

[Event "*** Titled Tuesday Blitz"]
[Site "Chess.com"]
[Date "2020.05.26"]
[Round "9"]
[White "Orest_Vovk"]
[Black "Tall-guy"]
[Result "1-0"]
[WhiteElo "2437"]
[BlackElo "2149"]
[TimeControl "180+1"]
[EndTime "11:52:22 PDT"]
[Termination "Orest_Vovk won on time"]

1. e4 {[%clk 0:03:00.9]} 1... c5 {[%clk 0:02:58.8]} 2. Be2 {[%clk 0:03:00.7]}
2... g6 {[%clk 0:02:57.2]} 3. f4 {[%clk 0:03:00]} 3... Bg7 {[%clk 0:02:56.4]} 4.
Nf3 {[%clk 0:03:00.1]} 4... Nc6 {[%clk 0:02:56.3]} 5. c3 {[%clk 0:03:00.4]} 5...
d5 {[%clk 0:02:51.4]} 6. d3 {[%clk 0:02:59.5]} 6... dxe4 {[%clk 0:02:48.7]} 7.
dxe4 {[%clk 0:03:00.4]} 7... Qxd1+ {[%clk 0:02:49.6]} 8. Bxd1 {[%clk 0:03:00.3]}
8... Nf6 {[%clk 0:02:47.2]} 9. Bc2 {[%clk 0:02:57.1]} 9... Bg4 {[%clk
0:02:45.9]} 10. Be3 {[%clk 0:02:56]} 10... Bxf3 {[%clk 0:02:45.5]} 11. gxf3
{[%clk 0:02:56]} 11... b6 {[%clk 0:02:46.4]} 12. Nd2 {[%clk 0:02:54.2]} 12...
O-O-O {[%clk 0:02:45.9]} 13. O-O-O {[%clk 0:02:53.9]} 13... Rd7 {[%clk
0:02:36.2]} 14. Ba4 {[%clk 0:02:51.9]} 14... Kc7 {[%clk 0:02:35.6]} 15. Nc4
{[%clk 0:02:52.1]} 15... Rxd1+ {[%clk 0:02:30.6]} 16. Rxd1 {[%clk 0:02:51.3]}
16... Ne8 {[%clk 0:02:24.2]} 17. f5 {[%clk 0:02:28.1]} 17... gxf5 {[%clk
0:01:58.6]} 18. exf5 {[%clk 0:02:22.3]} 18... Nd6 {[%clk 0:01:50.3]} 19. Bf4
{[%clk 0:02:13.3]} 19... Rd8 {[%clk 0:01:47.2]} 20. Re1 {[%clk 0:02:01.7]} 20...
Bf6 {[%clk 0:01:38.8]} 21. Ne3 {[%clk 0:01:49.8]} 21... e6 {[%clk 0:01:02.2]}
22. fxe6 {[%clk 0:01:37.1]} 22... fxe6 {[%clk 0:01:03.1]} 23. Ng4 {[%clk
0:01:27.1]} 23... e5 {[%clk 0:00:58.7]} 24. Bg3 {[%clk 0:01:07.4]} 24... Bg5+
{[%clk 0:00:41.2]} 25. Kb1 {[%clk 0:01:04.9]} 25... b5 {[%clk 0:00:41.6]} 26.
Bc2 {[%clk 0:01:01.9]} 26... Bf4 {[%clk 0:00:41.6]} 27. Nxe5 {[%clk 0:00:54.3]}
27... Bxg3 {[%clk 0:00:17.8]} 28. hxg3 {[%clk 0:00:52.7]} 28... Nxe5 {[%clk
0:00:18.3]} 29. Rxe5 {[%clk 0:00:50.2]} 29... Nc4 {[%clk 0:00:18.8]} 30. Re7+
{[%clk 0:00:49.3]} 30... Kb6 {[%clk 0:00:19.3]} 31. Be4 {[%clk 0:00:36]} 31...
Rd1+ {[%clk 0:00:18.9]} 32. Kc2 {[%clk 0:00:34.1]} 32... Rd2+ {[%clk 0:00:19.2]}
33. Kc1 {[%clk 0:00:33.1]} 33... Rxb2 {[%clk 0:00:11.4]} 34. a4 {[%clk
0:00:21.4]} 34... Rf2 {[%clk 0:00:08.3]} 35. axb5 {[%clk 0:00:19.9]} 35... Kxb5
{[%clk 0:00:06.6]} 36. Bd3 {[%clk 0:00:15.3]} 36... Rxf3 {[%clk 0:00:03.7]} 37.
Rb7+ {[%clk 0:00:15.2]} 37... Kc6 {[%clk 0:00:04.1]} 38. Be4+ {[%clk 0:00:15]}
1-0

[Event "*** Titled Tuesday Blitz"]
[Site "Chess.com"]
[Date "2020.05.26"]
[Round "9"]
[White "DonPreuss"]
[Black "Ariadna_Atreides"]
[Result "1-0"]
[WhiteElo "2232"]
[BlackElo "2071"]
[TimeControl "180+1"]
[EndTime "11:52:22 PDT"]
[Termination "DonPreuss won on time"]

1. f4 {[%clk 0:03:00.9]} 1... b6 {[%clk 0:02:55.9]} 2. Nf3 {[%clk 0:03:00.5]}
2... Bb7 {[%clk 0:02:55.8]} 3. g3 {[%clk 0:03:00.7]} 3... g6 {[%clk 0:02:46.5]}
4. Bg2 {[%clk 0:02:59.7]} 4... Bg7 {[%clk 0:02:46.4]} 5. O-O {[%clk 0:02:59.5]}
5... Nf6 {[%clk 0:02:45.8]} 6. d3 {[%clk 0:02:59.8]} 6... d5 {[%clk 0:02:43.6]}
7. c3 {[%clk 0:02:56.8]} 7... c5 {[%clk 0:02:41.1]} 8. Qe1 {[%clk 0:02:56.4]}
8... d4 {[%clk 0:02:36.1]} 9. Nbd2 {[%clk 0:02:25.1]} 9... O-O {[%clk
0:02:15.9]} 10. h3 {[%clk 0:02:21.1]} 10... dxc3 {[%clk 0:02:03.7]} 11. bxc3
{[%clk 0:02:19.7]} 11... Nd5 {[%clk 0:02:03.9]} 12. Ne4 {[%clk 0:02:04.7]} 12...
f5 {[%clk 0:02:01.2]} 13. Neg5 {[%clk 0:01:56]} 13... Bxc3 {[%clk 0:01:57.2]}
14. Bd2 {[%clk 0:01:53.1]} 14... Bxa1 {[%clk 0:01:45.4]} 15. Qxa1 {[%clk
0:01:52.2]} 15... Rf6 {[%clk 0:01:42.2]} 16. Ne5 {[%clk 0:01:36.1]} 16... h6
{[%clk 0:01:29.9]} 17. Ngf3 {[%clk 0:01:32]} 17... Nc6 {[%clk 0:01:28]} 18. e4
{[%clk 0:01:26.9]} 18... Ndb4 {[%clk 0:01:15.7]} 19. Bc3 {[%clk 0:01:10]} 19...
Nxd3 {[%clk 0:01:04.1]} 20. Nxd3 {[%clk 0:01:01.9]} 20... Qxd3 {[%clk
0:01:00.1]} 21. Bxf6 {[%clk 0:00:59.3]} 21... exf6 {[%clk 0:00:45.5]} 22. Qxf6
{[%clk 0:00:56.9]} 22... Qd7 {[%clk 0:00:25]} 23. Qxg6+ {[%clk 0:00:52.6]} 23...
Qg7 {[%clk 0:00:24.8]} 24. Qxf5 {[%clk 0:00:46.9]} 24... Nd4 {[%clk 0:00:18.6]}
25. Nxd4 {[%clk 0:00:38.3]} 25... Qxd4+ {[%clk 0:00:18.5]} 26. Kh2 {[%clk
0:00:37.1]} 26... Rf8 {[%clk 0:00:17.2]} 27. Qg6+ {[%clk 0:00:35.9]} 27... Qg7
{[%clk 0:00:15.3]} 28. Qxg7+ {[%clk 0:00:33.3]} 28... Kxg7 {[%clk 0:00:15.4]}
29. e5 {[%clk 0:00:33.3]} 29... Bxg2 {[%clk 0:00:13.7]} 30. Kxg2 {[%clk
0:00:33.4]} 30... c4 {[%clk 0:00:12.6]} 31. Rd1 {[%clk 0:00:32.4]} 31... Rc8
{[%clk 0:00:10.6]} 32. Kf3 {[%clk 0:00:29.9]} 32... c3 {[%clk 0:00:10.5]} 33.
Ke4 {[%clk 0:00:27.6]} 33... b5 {[%clk 0:00:10]} 34. f5 {[%clk 0:00:23.6]} 34...
b4 {[%clk 0:00:09]} 35. f6+ {[%clk 0:00:18.4]} 35... Kf7 {[%clk 0:00:08.3]} 36.
Kf5 {[%clk 0:00:16]} 36... c2 {[%clk 0:00:06.4]} 37. e6+ {[%clk 0:00:12.5]}
37... Kf8 {[%clk 0:00:04.3]} 38. Rc1 {[%clk 0:00:10.1]} 38... a5 {[%clk
0:00:01.4]} 39. Kg6 {[%clk 0:00:07.6]} 39... Ke8 {[%clk 0:00:01.3]} 40. Kg7
{[%clk 0:00:05.5]} 1-0